bitfinex/quotes_BTCUSD_20240617
["timestamp","ask_amount","ask_price","bid_price","bid_amount"]
[1718609899941,0.00186,66245.0,66244.0,1.83637239]
[1718609900195,0.00286,66245.0,66244.0,1.83637239]
[1718609900428,0.00186,66245.0,66244.0,1.83137239]
[1718609900648,0.00186,66245.0,66244.0,1.84936052]
[1718609900858,0.00286,66245.0,66244.0,1.85436052]
[1718609901064,0.00286,66245.0,66244.0,1.97960571]
[1718609901274,0.00186,66245.0,66244.0,1.97460571]
[1718609901419,0.00186,66245.0,66244.0,1.89880571]
[1718609902213,0.00186,66245.0,66244.0,1.46530611]
[1718609902437,0.00186,66245.0,66244.0,0.54727811]
[1718609902641,0.01078065,66245.0,66244.0,0.45182111]
[1718609902843,0.01078065,66245.0,66244.0,0.40132111]
[1718609903054,0.53968754,66245.0,66244.0,0.13124519]
[1718609903685,0.40477854,66245.0,66244.0,0.006]
[1718609903908,0.54507854,66245.0,66244.0,0.006]
[1718609904142,0.54407854,66245.0,66244.0,0.001]
[1718609904334,0.54407854,66245.0,66244.0,0.005]
[1718609904573,0.39312454,66245.0,66244.0,0.005]
[1718609905065,0.39312454,66245.0,66244.0,0.006]
[1718609905066,0.39412454,66245.0,66244.0,0.006]
[1718609905499,0.31808065,66245.0,66244.0,0.006]
[1718609905916,0.31808065,66245.0,66244.0,0.156957]
[1718609906362,0.31808065,66245.0,66244.0,0.2330386]
[1718609907447,0.31808065,66245.0,66244.0,0.5349526]
[1718609907663,0.00978065,66245.0,66244.0,0.98795439]
[1718609908255,0.01078065,66245.0,66244.0,0.98895439]
[1718609908469,0.00978065,66245.0,66244.0,0.98791073]
[1718609908698,0.00186,66245.0,66244.0,1.11317352]
[1718609908911,0.00086,66245.0,66244.0,0.98295439]
[1718609909150,0.00086,66245.0,66244.0,0.98795439]
[1718609909362,0.00186,66245.0,66244.0,0.98795439]
[1718609909798,0.00086,66245.0,66244.0,0.98295439]
[1718609910015,0.00286,66245.0,66244.0,0.98895439]
[1718609910226,0.00186,66245.0,66244.0,0.98795439]
[1718609910679,0.00286,66245.0,66244.0,0.98895439]
[1718609914080,0.00286,66245.0,66244.0,1.1142185]
[1718609914572,0.00286,66245.0,66244.0,1.0381369]
[1718609914761,0.00286,66245.0,66244.0,0.91287279]
[1718609915209,0.00286,66245.0,66244.0,1.03813834]
[1718609915588,0.00186,66245.0,66244.0,1.03313834]
[1718609916011,0.00286,66245.0,66244.0,1.03813834]
[1718609916655,0.00286,66245.0,66244.0,0.73622434]
[1718609916858,0.00186,66245.0,66244.0,0.73522434]
[1718609917083,0.00186,66245.0,66244.0,0.73022434]
[1718609917084,0.00086,66245.0,66244.0,0.73022434]
[1718609917309,0.00186,66245.0,66244.0,0.73122434]
[1718609917537,0.00286,66245.0,66244.0,0.73522434]
[1718609918556,0.00386,66245.0,66244.0,0.73622434]
[1718609918759,0.00186,66245.0,66244.0,0.73522434]
[1718609918906,0.00086,66245.0,66244.0,0.73022434]
[1718609919116,0.00186,66245.0,66244.0,0.88731213]
[1718609919558,0.00186,66245.0,66244.0,1.18922613]
[1718609919765,0.00186,66245.0,66244.0,1.06396058]
[1718609919966,0.00186,66245.0,66244.0,0.88731218]
[1718609920607,0.00286,66245.0,66244.0,0.73622439]
[1718609920826,0.00286,66245.0,66244.0,0.75454813]
[1718609921262,0.00286,66245.0,66244.0,0.75454815]
[1718609923805,0.00086,66245.0,66244.0,0.74854815]
[1718609924006,0.00086,66245.0,66244.0,0.29454636]
[1718609924240,0.599623,66245.0,66244.0,0.13126562]
[1718609924445,0.47102996,66245.0,66244.0,0.006]
[1718609924665,0.32007596,66245.0,66244.0,0.006]
[1718609925077,0.31907596,66245.0,66244.0,0.005]
[1718609925493,0.31907596,66245.0,66244.0,0.0556]
[1718609925699,0.31907596,66245.0,66244.0,0.0516]
[1718609926103,0.32007596,66245.0,66244.0,0.0566]
[1718609926540,0.31907596,66245.0,66244.0,0.0516]
[1718609926798,0.31907596,66245.0,66244.0,0.006]
[1718609926799,1.07384796,66245.0,66244.0,0.006]
[1718609927041,0.77293896,66245.0,66244.0,0.006]
[1718609927718,0.77193896,66245.0,66244.0,0.001]
[1718609928214,0.150961,66242.0,66239.0,0.0506]
[1718609928438,0.31068496,66245.0,66238.0,0.000946]
[1718609928439,0.468564,66241.0,66238.0,0.000946]
[1718609928674,0.47647239,66241.0,66238.0,0.051546]
[1718609929126,0.47647239,66241.0,66238.0,0.000946]
[1718609929388,0.47647239,66241.0,66239.0,0.0506]
[1718609929568,0.3144,66240.0,66239.0,0.0506]
[1718609929788,0.603872,66239.0,66238.0,0.000946]
[1718609930002,0.83088389,66239.0,66238.0,0.005946]
[1718609930242,0.83879165,66239.0,66238.0,0.005946]
[1718609930455,0.53685565,66239.0,66238.0,0.000946]
[1718609931083,0.53685565,66239.0,66238.0,0.001946]
[1718609931296,0.53685565,66239.0,66238.0,0.000946]
[1718609931719,0.83979165,66239.0,66238.0,0.001946]
[1718609932356,1.47706602,66239.0,66238.0,0.006946]
[1718609932564,1.15519165,66239.0,66238.0,0.006946]
[1718609932792,1.17513002,66239.0,66238.0,0.006946]
[1718609933205,1.47706602,66239.0,66238.0,0.006946]
[1718609933411,1.47606602,66239.0,66238.0,0.001946]
[1718609933626,1.47606602,66239.0,66238.0,0.005946]
[1718609934263,1.17313002,66239.0,66238.0,0.004946]
[1718609935121,1.17313002,66239.0,66238.0,0.005946]
[1718609936429,1.15319165,66239.0,66238.0,0.005946]
[1718609936861,1.17313002,66239.0,66238.0,0.005946]
[1718609940260,1.47506602,66239.0,66238.0,0.005946]
[1718609944417,1.50794774,66239.0,66238.0,0.005946]
[1718609944676,1.47506602,66239.0,66238.0,0.005946]
[1718609947409,1.77700202,66239.0,66238.0,0.005946]
[1718609948070,2.19026328,66239.0,66238.0,0.005946]
[1718609948285,2.23545863,66239.0,66238.0,0.005946]
[1718609948492,2.13545863,66239.0,66238.0,0.000946]
[1718609948717,2.15805631,66239.0,66238.0,0.000946]
[1718609949084,2.16605631,66239.0,66238.0,0.000946]
[1718609949296,2.16602939,66239.0,66238.0,0.000946]
[1718609949482,2.19826328,66239.0,66238.0,0.000946]
[1718609950082,1.84149712,66239.0,66238.0,0.000946]
[1718609950295,1.49439128,66239.0,66238.0,0.000946]
[1718609950723,1.08514776,66239.0,66238.0,0.000946]
[1718609950919,1.10508613,66239.0,66238.0,0.000946]
[1718609951194,1.08514776,66239.0,66238.0,0.000946]
[1718609954009,1.40702213,66239.0,66238.0,0.000946]
[1718609955115,1.72028379,66239.0,66238.0,0.000946]
[1718609956705,2.32490758,66239.0,66238.0,0.000946]
[1718609957483,2.02297158,66239.0,66238.0,0.000946]
[1718609958447,2.0681348,66239.0,66238.0,0.000946]
[1718609958664,2.07118684,66239.0,66238.0,0.000946]
[1718609958874,2.07065181,66239.0,66238.0,0.000946]
[1718609959538,1.97065181,66239.0,66238.0,0.000946]
[1718609959953,2.01580866,66239.0,66238.0,0.000946]
[1718609960345,1.97065181,66239.0,66238.0,0.000946]
[1718609960794,2.01586984,66239.0,66238.0,0.000946]
[1718609961213,2.01586933,66239.0,66238.0,0.000946]
[1718609961417,1.97071387,66239.0,66238.0,0.000946]
[1718609962494,2.01586957,66239.0,66238.0,0.000946]
[1718609963068,2.07071387,66239.0,66238.0,0.000946]
[1718609964061,2.22280166,66239.0,66238.0,0.000946]
[1718609964489,2.12280166,66239.0,66238.0,0.000946]
[1718609964916,1.97071387,66239.0,66238.0,0.000946]
[1718609965564,2.07071387,66239.0,66238.0,0.000946]
[1718609967228,1.92011387,66239.0,66238.0,0.000946]
[1718609967457,1.97071387,66239.0,66238.0,0.000946]
[1718609968149,1.97192171,66239.0,66238.0,0.000946]
[1718609968366,2.03967673,66239.0,66238.0,0.000946]
[1718609969192,1.97192171,66239.0,66238.0,0.000946]
[1718609970468,2.30654346,66239.0,66238.0,0.000946]
[1718609971118,2.30690752,66239.0,66238.0,0.000946]
[1718609971331,2.39724755,66239.0,66238.0,0.000946]
[1718609971502,2.54933534,66239.0,66238.0,0.000946]
[1718609971713,2.39724755,66239.0,66238.0,0.000946]
[1718609971929,2.32670916,66239.0,66238.0,0.000946]
[1718609972127,0.96417342,66239.0,66238.0,0.000946]
[1718609972325,0.82727949,66239.0,66238.0,0.000946]
[1718609972501,0.84721786,66239.0,66238.0,0.000946]
[1718609972889,0.80201179,66239.0,66238.0,0.000946]
[1718609973270,0.87805568,66239.0,66238.0,0.000946]
[1718609973701,1.17999168,66239.0,66238.0,0.000946]
[1718609973899,1.20525938,66239.0,66238.0,0.000946]
[1718609974107,0.55618131,66239.0,66238.0,0.000946]
[1718609974314,0.85811731,66239.0,66238.0,0.000946]
[1718609974557,0.85811731,66239.0,66238.0,0.151916]
[1718609974558,0.01590776,66239.0,66238.0,0.151916]
[1718609974779,0.01590776,66239.0,66238.0,0.000946]
[1718609975410,0.09195165,66239.0,66238.0,0.000946]
[1718609975654,0.24291965,66239.0,66238.0,0.000946]
[1718609976240,0.09195165,66239.0,66238.0,0.053042]
[1718609976435,0.09195165,66239.0,66238.0,0.817253]
[1718609976436,0.01590776,66239.0,66238.0,0.817253]
[1718609976636,0.008,66239.0,66238.0,1.119194]
[1718609977005,0.008,66239.0,66238.0,1.24447518]
[1718609977230,0.008,66239.0,66238.0,1.119194]
[1718609977433,0.005,66239.0,66238.0,1.119194]
[1718609977857,0.006,66239.0,66238.0,1.124194]
[1718609978059,0.001,66239.0,66238.0,1.124194]
[1718609978290,0.00085,66244.0,66243.0,0.150959]
[1718609978847,0.00873181,66244.0,66243.0,0.150959]
[1718609980097,0.00973181,66244.0,66243.0,0.2679357]
[1718609981647,0.00873181,66244.0,66243.0,0.2679357]
[1718609981834,0.00085,66244.0,66243.0,0.2699357]
[1718609982095,0.00085,66244.0,66243.0,0.2719357]
[1718609982320,0.00085,66244.0,66243.0,0.2699357]
[1718609982604,0.00085,66244.0,66243.0,0.2709357]
[1718609984658,0.00085,66244.0,66243.0,0.153959]
[1718609989138,0.00085,66244.0,66243.0,0.466859]
[1718609989727,0.00085,66244.0,66243.0,0.517459]
[1718609989933,0.00085,66244.0,66243.0,0.3665]
[1718609990183,0.00085,66244.0,66243.0,0.3159]
[1718609990362,0.00871823,66244.0,66243.0,0.003]
[1718609990968,1.3925556,66244.0,66243.0,0.003]
[1718609991220,1.3925556,66244.0,66243.0,0.001]
[1718609991424,1.4431556,66244.0,66243.0,0.001]
[1718609991568,1.4431556,66244.0,66243.0,0.003]
[1718609991769,1.5431556,66244.0,66243.0,0.002]
[1718609992035,1.4431556,66244.0,66243.0,0.002]
[1718609992243,0.452904,66239.0,66238.0,0.000946]
[1718609992664,0.48070879,66239.0,66238.0,0.000946]
[1718609993109,0.78264479,66239.0,66238.0,0.000946]
[1718609993322,0.85868868,66239.0,66238.0,0.000946]
[1718609993721,0.86368868,66239.0,66238.0,0.000946]
[1718609993944,0.84375031,66239.0,66238.0,0.000946]
[1718609994381,0.54181431,66239.0,66238.0,0.000946]
[1718609994599,0.01286642,66239.0,66238.0,0.282916]
[1718609994822,0.01586642,66239.0,66238.0,0.6356321]
[1718609995034,0.008,66239.0,66238.0,0.6356321]
[1718609997531,0.008,66239.0,66238.0,0.131946]
[1718609997747,0.008,66239.0,66238.0,0.282916]
[1718609997929,0.01585613,66239.0,66238.0,0.584857]
[1718609998312,0.008,66239.0,66238.0,0.584857]
[1718609999509,0.008,66239.0,66238.0,0.131946]
[1718609999916,0.01585592,66239.0,66238.0,0.131946]
[1718610000168,0.01585592,66239.0,66238.0,0.000946]
[1718610000645,0.16682392,66239.0,66238.0,0.000946]
[1718610000855,1.09257029,66239.0,66238.0,0.000946]
[1718610001068,2.22685495,66239.0,66238.0,0.000946]
[1718610001299,2.42051234,66239.0,66238.0,0.000946]
[1718610001502,1.96797634,66239.0,66238.0,0.000946]
[1718610001718,1.96754426,66239.0,66238.0,0.000946]
[1718610002131,1.91948649,66239.0,66238.0,0.000946]
[1718610002354,1.66260606,66239.0,66238.0,0.000946]
[1718610002482,1.58961156,66239.0,66238.0,0.000946]
[1718610002688,1.87238058,66239.0,66238.0,0.000946]
[1718610003029,1.10242079,66239.0,66238.0,0.000946]
[1718610003435,1.04996468,66239.0,66238.0,0.000946]
[1718610003637,0.75664218,66239.0,66238.0,0.000946]
[1718610003892,0.43077418,66239.0,66238.0,0.000946]
[1718610004090,0.55674218,66239.0,66238.0,0.000946]
[1718610004314,0.56774218,66239.0,66238.0,0.000946]
[1718610004518,0.88067818,66239.0,66238.0,0.000946]
[1718610004805,1.19393716,66239.0,66238.0,0.000946]
[1718610005031,1.18293716,66239.0,66238.0,0.000946]
[1718610005531,1.18793716,66239.0,66238.0,0.000946]
[1718610005748,1.17193716,66239.0,66238.0,0.000946]
[1718610005952,1.17893716,66239.0,66238.0,0.000946]
[1718610006160,1.48587316,66239.0,66238.0,0.000946]
[1718610006342,1.47887316,66239.0,66238.0,0.000946]
[1718610006723,1.48787316,66239.0,66238.0,0.000946]
[1718610007617,1.47887316,66239.0,66238.0,0.000946]
[1718610007955,1.47387316,66239.0,66238.0,0.000946]
[1718610008154,1.5473147,66239.0,66238.0,0.000946]
[1718610008359,1.19588874,66239.0,66238.0,0.000946]
[1718610008683,1.24105572,66239.0,66238.0,0.000946]
[1718610008906,1.54733085,66239.0,66238.0,0.000946]
[1718610009096,1.78396387,66239.0,66238.0,0.000946]
[1718610009303,1.93706387,66239.0,66238.0,0.000946]
[1718610009505,2.39108766,66239.0,66238.0,0.000946]
[1718610009681,2.40508766,66239.0,66238.0,0.000946]
[1718610010494,2.47283814,66239.0,66238.0,0.000946]
[1718610011494,2.37283814,66239.0,66238.0,0.000946]
[1718610012349,2.34456358,66239.0,66238.0,0.000946]
[1718610012558,2.37270525,66239.0,66238.0,0.000946]
[1718610012970,2.47270525,66239.0,66238.0,0.000946]
[1718610013437,3.02837181,66239.0,66238.0,0.000946]
[1718610013674,2.93803784,66239.0,66238.0,0.000946]
[1718610014065,3.0509553,66239.0,66238.0,0.000946]
[1718610014524,2.93803784,66239.0,66238.0,0.000946]
[1718610015373,3.46297384,66239.0,66238.0,0.000946]
[1718610016636,3.43997384,66239.0,66238.0,0.000946]
[1718610017167,3.70339384,66239.0,66238.0,0.000946]
[1718610017380,3.69139384,66239.0,66238.0,0.000946]
[1718610017588,3.70539384,66239.0,66238.0,0.000946]
[1718610018276,3.69139384,66239.0,66238.0,0.000946]
[1718610018617,3.70539384,66239.0,66238.0,0.000946]
[1718610019097,3.69139384,66239.0,66238.0,0.000946]
[1718610019523,3.70539384,66239.0,66238.0,0.000946]
[1718610019725,4.19903936,66239.0,66238.0,0.000946]
[1718610020290,4.18503936,66239.0,66238.0,0.000946]
[1718610020558,4.17103936,66239.0,66238.0,0.000946]
[1718610020985,4.18503936,66239.0,66238.0,0.000946]
[1718610021209,4.50097536,66239.0,66238.0,1e-06]
[1718610022077,2.51209137,66234.0,66233.0,1e-06]
[1718610022303,3.76412474,66234.0,66233.0,1e-06]
[1718610023616,4.04617851,66234.0,66233.0,1e-06]
[1718610023830,4.06917851,66234.0,66233.0,1e-06]
[1718610024500,4.08317851,66234.0,66233.0,1e-06]
[1718610024713,4.12724188,66234.0,66233.0,1e-06]
[1718610025061,4.12733291,66234.0,66233.0,1e-06]
[1718610025477,4.42929191,66234.0,66233.0,1e-06]
[1718610025697,4.47929191,66234.0,66233.0,1e-06]
[1718610027168,0.21993837,66221.0,66220.0,0.009405]
[1718610027389,2.67701208,66221.0,66220.0,0.009405]
[1718610027598,2.68482261,66221.0,66220.0,0.009405]
[1718610027821,2.72990835,66221.0,66220.0,0.009405]
[1718610028011,2.82042835,66221.0,66220.0,0.009405]
[1718610028233,2.97249702,66221.0,66220.0,0.009405]
[1718610028469,2.9384304,66221.0,66220.0,0.009405]
[1718610028874,2.98349656,66221.0,66220.0,0.009405]
[1718610029094,2.97249656,66221.0,66220.0,0.009405]
[1718610029309,2.9394304,66221.0,66220.0,0.009405]
[1718610029508,2.9274304,66221.0,66220.0,0.009405]
[1718610029930,2.9414304,66221.0,66220.0,0.009405]
[1718610030341,3.1003304,66221.0,66220.0,0.009405]
[1718610030548,3.44740108,66221.0,66220.0,0.009405]
[1718610030758,3.1003304,66221.0,66220.0,0.009405]
[1718610030964,3.1143304,66221.0,66220.0,0.009405]
[1718610031379,3.15937697,66221.0,66220.0,0.009405]
[1718610031589,3.1143304,66221.0,66220.0,0.009405]
[1718610031803,3.18580708,66221.0,66220.0,0.009405]
[1718610032021,3.48782508,66221.0,66220.0,0.009405]
[1718610032219,3.18580708,66221.0,66220.0,0.009405]
[1718610032450,3.11817847,66221.0,66220.0,0.009405]
[1718610032679,3.16321997,66221.0,66220.0,0.009405]
[1718610032889,3.11817847,66221.0,66220.0,0.009405]
[1718610033568,2.96609068,66221.0,66220.0,0.009405]
[1718610034243,2.80163155,66221.0,66220.0,0.009405]
[1718610034484,2.80719068,66221.0,66220.0,0.009405]
[1718610035567,2.35457268,66221.0,66220.0,0.009405]
[1718610035850,2.50517268,66221.0,66220.0,0.009405]
[1718610036024,1.99347665,66221.0,66220.0,0.009405]
[1718610036260,1.94711177,66221.0,66220.0,0.009405]
[1718610037142,1.57209377,66221.0,66220.0,0.009405]
[1718610037365,1.8360878,66221.0,66220.0,0.009405]
[1718610038015,1.16211343,66221.0,66220.0,0.333705]
[1718610038220,0.67998662,66221.0,66220.0,0.333705]
[1718610038439,0.38664986,66221.0,66220.0,0.333705]
[1718610038656,0.68866786,66221.0,66220.0,0.333705]
[1718610038862,1.00203362,66221.0,66220.0,0.333705]
[1718610039069,1.30405162,66221.0,66220.0,0.333705]
[1718610039273,1.29005162,66221.0,66220.0,0.333705]
[1718610039694,1.30205162,66221.0,66220.0,0.333705]
[1718610040118,1.30205162,66221.0,66220.0,0.153905]
[1718610040321,1.60406962,66221.0,66220.0,0.153905]
[1718610040745,2.03661079,66221.0,66220.0,0.009405]
[1718610040956,2.44822879,66221.0,66220.0,0.009405]
[1718610041188,2.67155225,66221.0,66220.0,0.009405]
[1718610041403,2.36953425,66221.0,66220.0,0.009405]
[1718610041607,2.38053425,66221.0,66220.0,0.009405]
[1718610042023,2.36953425,66221.0,66220.0,0.009405]
[1718610042230,2.35753425,66221.0,66220.0,0.009405]
[1718610042452,2.57355225,66221.0,66220.0,0.009405]
[1718610042649,2.28453425,66221.0,66220.0,0.009405]
[1718610042861,2.38453425,66221.0,66220.0,0.009405]
[1718610043487,2.80655225,66221.0,66220.0,0.009405]
[1718610043723,2.82055225,66221.0,66220.0,0.009405]
[1718610043925,2.82057886,66221.0,66220.0,0.009405]
[1718610045598,2.87057886,66221.0,66220.0,0.009405]
[1718610046068,2.93820747,66221.0,66220.0,0.009405]
[1718610046308,2.9382219,66221.0,66220.0,0.009405]
[1718610046510,2.8882219,66221.0,66220.0,0.009405]
[1718610046722,2.9382219,66221.0,66220.0,0.009405]
[1718610046928,2.91569777,66221.0,66220.0,0.009405]
[1718610047976,2.60229097,66221.0,66220.0,0.009405]
[1718610048206,2.60229097,66221.0,66215.0,0.009394]
[1718610048207,2.06017237,66216.0,66215.0,0.009394]
[1718610048425,2.65434349,66216.0,66215.0,0.009394]
[1718610048642,2.78851145,66216.0,66215.0,0.009394]
[1718610049302,2.85617264,66216.0,66215.0,0.009394]
[1718610049521,2.78851145,66216.0,66215.0,0.009394]
[1718610049748,2.50047045,66216.0,66215.0,0.009394]
[1718610049967,2.62251145,66216.0,66215.0,0.009394]
[1718610050196,2.60851145,66216.0,66215.0,0.009394]
[1718610050403,2.79017264,66216.0,66215.0,0.009394]
[1718610050602,2.80417264,66216.0,66215.0,0.009394]
[1718610050815,2.94226043,66216.0,66215.0,0.009394]
[1718610051033,2.92826043,66216.0,66215.0,0.009394]
[1718610051284,3.00270743,66216.0,66215.0,0.00520293]
[1718610051506,2.93504624,66216.0,66215.0,0.00520293]
[1718610052130,2.94904624,66216.0,66215.0,0.00520293]
[1718610052339,3.26981797,66216.0,66215.0,0.00520293]
[1718610052548,3.34603289,66216.0,66215.0,0.00520293]
[1718610052983,3.36003289,66216.0,66215.0,0.00520293]
[1718610053197,3.2703458,66216.0,66215.0,0.00520293]
[1718610053411,3.68510115,66216.0,66215.0,0.00520293]
[1718610053624,3.5723868,66216.0,66215.0,0.00520293]
[1718610053837,4.05651584,66216.0,66215.0,0.00520293]
[1718610054063,4.21541584,66216.0,66215.0,0.00520293]
[1718610054267,4.23135576,66216.0,66215.0,0.00520293]
[1718610054712,4.24535576,66216.0,66215.0,0.00520293]
[1718610055147,4.23135576,66216.0,66215.0,0.00520293]
[1718610055565,4.24535576,66216.0,66215.0,0.00520293]
[1718610055981,4.23135576,66216.0,66215.0,0.00520293]
[1718610056412,3.91058403,66216.0,66215.0,0.00520293]
[1718610056628,3.7612525,66216.0,66215.0,0.00520293]
[1718610056835,4.23138154,66216.0,66215.0,0.00520293]
[1718610057058,4.24538213,66216.0,66215.0,0.00520293]
[1718610057957,4.32943989,66216.0,66215.0,0.00520293]
[1718610058390,4.24538213,66216.0,66215.0,0.00520293]
[1718610058616,4.36687132,66216.0,66215.0,0.00520293]
[1718610058835,4.35287132,66216.0,66215.0,0.00520293]
[1718610059071,4.36687132,66216.0,66215.0,0.00520293]
[1718610059319,3.8859595,66216.0,66215.0,0.00520293]
[1718610059528,4.37076731,66216.0,66215.0,0.00520293]
[1718610059738,3.83576959,66216.0,66215.0,0.00520293]
[1718610059963,3.91531937,66216.0,66215.0,0.00520293]
[1718610060178,3.96187526,66216.0,66215.0,0.00520293]
[1718610060393,3.88790741,66216.0,66215.0,0.00520293]
[1718610060611,3.60843534,66216.0,66215.0,0.00520293]
[1718610060818,3.2889063,66216.0,66215.0,0.00520293]
[1718610061048,3.0704063,66216.0,66215.0,0.00520293]
[1718610061310,1.87208651,66216.0,66215.0,0.00520293]
[1718610061551,1.87208651,66216.0,66215.0,0.14460293]
[1718610061552,1.91427912,66216.0,66215.0,0.14460293]
[1718610061800,1.81107573,66216.0,66215.0,0.14460293]
[1718610062016,1.87885707,66216.0,66215.0,0.14460293]
[1718610062241,1.81107573,66216.0,66215.0,0.14460293]
[1718610062473,2.14581909,66216.0,66215.0,0.14460293]
[1718610062718,2.22219951,66216.0,66215.0,0.14460293]
[1718610062953,2.14581909,66216.0,66215.0,0.14460293]
[1718610063181,2.11781909,66216.0,66215.0,0.14460293]
[1718610063386,2.3742873,66216.0,66215.0,0.14460293]
[1718610063603,2.23619951,66216.0,66215.0,0.14460293]
[1718610063812,2.17219951,66216.0,66215.0,0.14460293]
[1718610064043,2.20226114,66216.0,66215.0,0.14460293]
[1718610064272,2.21626114,66216.0,66215.0,0.32280293]
[1718610064504,2.23619951,66216.0,66215.0,0.32280293]
[1718610065377,1.16020622,66216.0,66215.0,0.32280293]
[1718610065661,1.05401018,66216.0,66215.0,0.32280293]
[1718610065908,1.04001018,66216.0,66215.0,0.32280293]
[1718610066130,0.36702746,66216.0,66215.0,0.37340293]
[1718610066344,0.41225614,66216.0,66215.0,0.37340293]
[1718610066583,0.33856224,66216.0,66215.0,0.37340293]
[1718610066823,0.19018796,66216.0,66215.0,0.37340293]
[1718610067478,0.02516796,66216.0,66215.0,1.07791793]
[1718610067714,0.007,66216.0,66215.0,0.61594893]
[1718610067945,0.016,66216.0,66215.0,1.05911793]
[1718610068342,0.009,66216.0,66215.0,0.75707193]
[1718610069249,0.07604389,66221.0,66217.0,0.3007]
[1718610069476,0.01115004,66220.0,66216.0,0.3007]
[1718610069713,0.01,66216.0,66215.0,0.75897193]
[1718610069947,0.015149,66216.0,66215.0,0.75897193]
[1718610070195,0.22705289,66221.0,66215.0,0.30690293]
[1718610070196,0.151018,66217.0,66215.0,0.30690293]
[1718610070440,0.151018,66217.0,66216.0,0.1331]
[1718610070667,0.755092,66217.0,66216.0,0.1331]
[1718610073197,0.773092,66217.0,66216.0,0.1331]
[1718610073633,0.755092,66217.0,66216.0,0.1331]
[1718610074207,0.755092,66217.0,66215.0,0.00520293]
[1718610074208,1.057143,66216.0,66215.0,0.00520293]
[1718610074420,1.23759508,66216.0,66215.0,0.00520293]
[1718610074630,1.61879235,66216.0,66215.0,0.00520293]
[1718610074847,1.63873072,66216.0,66215.0,0.00520293]
[1718610075279,2.09285951,66216.0,66215.0,0.00520293]
[1718610075692,1.94077172,66216.0,66215.0,0.00520293]
[1718610076113,1.87296091,66216.0,66215.0,0.00520293]
[1718610076629,1.94077292,66216.0,66215.0,0.00520293]
[1718610076859,1.95194088,66216.0,66215.0,0.00520293]
[1718610077107,1.96294088,66216.0,66215.0,0.00520293]
[1718610077326,1.33892051,66216.0,66215.0,0.00520293]
[1718610077566,0.53243595,66216.0,66215.0,0.00520293]
[1718610077796,0.48722896,66216.0,66215.0,0.00520293]
[1718610078514,0.78926996,66216.0,66215.0,0.00520293]
[1718610078750,0.48722896,66216.0,66215.0,0.00520293]
[1718610078968,0.03416796,66216.0,66215.0,0.00520293]
[1718610079183,0.18518796,66216.0,66215.0,0.00520293]
[1718610079580,0.48722896,66216.0,66215.0,0.00520293]
[1718610079777,0.78926996,66216.0,66215.0,0.00520293]
[1718610087597,0.48722896,66216.0,66215.0,0.00520293]
[1718610088247,0.48722896,66216.0,66215.0,0.03689322]
[1718610088670,0.48722896,66216.0,66215.0,0.00520293]
[1718610089338,0.80058492,66216.0,66215.0,0.00520293]
[1718610090642,1.10262592,66216.0,66215.0,0.00520293]
[1718610091954,0.78926996,66216.0,66215.0,0.00520293]
[1718610092179,1.10262492,66216.0,66215.0,0.00520293]
[1718610093313,1.13135925,66216.0,66215.0,0.00520293]
[1718610093565,1.10262492,66216.0,66215.0,0.00520293]
[1718610093797,1.13122765,66216.0,66215.0,0.00520293]
[1718610094007,1.10262492,66216.0,66215.0,0.00520293]
[1718610094251,1.13122748,66216.0,66215.0,0.00520293]
[1718610096754,1.15116585,66216.0,66215.0,0.00520293]
[1718610096961,1.43342748,66216.0,66215.0,0.00520293]
[1718610097615,1.30072748,66216.0,66215.0,0.00520293]
[1718610099172,1.13126366,66216.0,66215.0,0.00520293]
[1718610101797,1.13134092,66216.0,66215.0,0.00520293]
[1718610104517,1.13132717,66216.0,66215.0,0.00520293]
[1718610105153,1.10262492,66216.0,66215.0,0.00520293]
[1718610105328,1.13132862,66216.0,66215.0,0.00520293]
[1718610106666,1.13217862,66216.0,66215.0,0.00520293]
[1718610107662,1.17738976,66216.0,66215.0,0.00520293]
[1718610109125,1.13217862,66216.0,66215.0,0.00520293]
[1718610111251,0.37707662,66216.0,66215.0,0.31300293]
[1718610111502,0.5733812,66216.0,66215.0,0.34936322]
[1718610111715,0.5446775,66216.0,66215.0,0.34936322]
[1718610111934,0.3936575,66216.0,66215.0,0.31300293]
[1718610112383,0.03501796,66216.0,66215.0,0.31300293]
[1718610112620,0.03501796,66216.0,66215.0,0.46402593]
[1718610112856,0.03501796,66216.0,66215.0,1.06811793]
[1718610113080,0.03501796,66216.0,66215.0,1.48203572]
[1718610113306,0.01185,66216.0,66215.0,1.48203572]
[1718610113517,0.01185,66216.0,66215.0,1.62736041]
[1718610113734,0.01385,66216.0,66215.0,1.62736041]
[1718610113948,0.00285,66216.0,66215.0,1.62736041]
[1718610114167,0.00385,66216.0,66215.0,1.62736041]
[1718610114595,0.00185,66216.0,66215.0,1.62736041]
[1718610114820,0.00085,66216.0,66215.0,1.62736041]
[1718610115048,0.00085,66216.0,66215.0,1.62836041]
[1718610115526,0.00085,66216.0,66215.0,1.37691441]
[1718610116225,0.00085,66216.0,66215.0,1.67896041]
[1718610116902,0.00085,66216.0,66215.0,1.67895174]
[1718610118407,0.00085,66216.0,66215.0,1.55363572]
[1718610118616,0.00085,66216.0,66215.0,1.67894893]
[1718610119088,0.00085,66216.0,66215.0,1.83103672]
[1718610120584,0.00185,66216.0,66215.0,1.83203672]
[1718610121263,0.00185,66216.0,66215.0,1.83103672]
[1718610121483,0.00285,66216.0,66215.0,1.72316493]
[1718610122132,0.00185,66216.0,66215.0,1.69916493]
[1718610122377,0.00185,66216.0,66215.0,0.64093914]
[1718610122600,0.00285,66216.0,66215.0,0.47843914]
[1718610122828,0.00285,66216.0,66215.0,0.65517193]
[1718610123108,0.01389571,66216.0,66215.0,0.65517193]
[1718610123326,0.00285,66216.0,66215.0,0.65517193]
[1718610123541,0.01289571,66216.0,66215.0,0.95621793]
[1718610123768,0.00285,66216.0,66215.0,0.01220293]
[1718610123990,0.46695671,66216.0,66215.0,0.01220293]
[1718610124219,0.756952,66216.0,66215.0,0.05880293]
[1718610124443,0.46595671,66216.0,66215.0,0.05880293]
[1718610124663,0.46695671,66216.0,66215.0,0.06280293]
[1718610125093,0.46695671,66216.0,66215.0,0.05580293]
[1718610125094,0.46495671,66216.0,66215.0,0.05580293]
[1718610125457,0.46795671,66216.0,66215.0,0.05580293]
[1718610129005,0.46795671,66216.0,66215.0,0.05480328]
[1718610131424,0.46795671,66216.0,66215.0,0.08854361]